Cogmind - Beta 15 @@@ ROGUE MODE // 2025.08.18 @ 20:07:38 Player: shapeshifter Result: Destroyed by S-10 Pest with Light Assault Rifle Performance ------------- Evolutions (0) 0 Regions Visited (2) 400 Robots Destroyed (12) 60 Value Destroyed (416) 416 Prototype IDs (0) 0 Alien Tech Used (0) 0 Bonus (-51) -51 TOTAL SCORE: 825 Bonus ------- Friendly Fire -51 Cogmind --------- Core Integrity 0/250 Matter 84/300 Energy 200/200 System Corruption 0% Temperature Cool (0) Movement Core (1550) Ox30 Location -10/Subcaves Parts ------- > --- POWER (1) -------- Subdweller Power Source > --- PROPULSION (2) --- (None) > --- UTILITY (2) ------ Huge Storage Unit Subdweller Optics > --- WEAPON (2) ------- Heavy Battle Rifle > --- INVENTORY (25) --- Ion Engine Subdweller Power Source Subdweller Power Source Subdweller Power Source Subdweller Power Source Subdweller Power Source Large Storage Unit Huge Storage Unit Subdweller Optics Subdweller Optics Subdweller Optics Sensor Array Improved Terrain Scanner Assault Rifle Light Assault Rifle Light Assault Rifle Subdweller Machine Gun Subdweller Machine Gun Battle Cannon Mining Laser Peak State ------------ > --- POWER ------------ Subdweller Power Source > --- PROPULSION ------- Wheel > --- UTILITY ---------- Huge Storage Unit Subdweller Optics > --- WEAPON ----------- Subdweller Beam Cannon Heavy Battle Rifle > --- INVENTORY -------- Ion Engine Subdweller Power Source Subdweller Power Source Subdweller Power Source Subdweller Power Source Subdweller Power Source Large Storage Unit Huge Storage Unit Subdweller Optics Subdweller Optics Subdweller Optics Sensor Array Improved Terrain Scanner Assault Rifle Light Assault Rifle Light Assault Rifle Subdweller Machine Gun Subdweller Machine Gun Battle Cannon Grenade Launcher Mining Laser [Rating: 15] Favorites ----------- Power Subdweller Power Source Engine Subdweller Power Source Propulsion Light Treads Treads Light Treads Wheel Wheel Utility Huge Storage Unit Device Subdweller Optics Storage Huge Storage Unit Weapon Light Assault Rifle Energy Cannon Subdweller Beam Cannon Ballistic Gun Light Assault Rifle Ballistic Cannon Battle Cannon Launcher Grenade Launcher Build | -11 -10 -10 ------- Run | Yrd Mat Sub Slots Evolved . | . . . Power . | . . . Propulsion . | . . . Utility . | . . . Weapon . | . . . Parts Attached 21 | 6 2 13 Power 4 | 1 . 3 Engine 4 | 1 . 3 Core . | . . . Reactor . | . . . Propulsion 4 | 2 . 2 Treads 2 | 2 . . Leg . | . . . Wheel 2 | . . 2 Hover . | . . . Flight . | . . . Utility 6 | 1 2 3 Device 3 | . 1 2 Storage 3 | 1 1 1 Processor . | . . . Hackware . | . . . Protection . | . . . Artifact . | . . . Weapon 7 | 2 . 5 Energy Gun . | . . . Energy Cannon 1 | . . 1 Ballistic Gun 4 | 2 . 2 Ballistic Cannon 1 | . . 1 Launcher 1 | . . 1 Special Weapon . | . . . Impact Weapon . | . . . Slashing Weapon . | . . . Piercing Weapon . | . . . Special Melee Weapon . | . . . Unidentified Prototypes . | . . . Parts Lost 6 | . . 6 Power 1 | . . 1 Propulsion 2 | . . 2 Utility 1 | . . 1 Weapon 2 | . . 2 Highest Loss Streak 2 | . . 2 To Critical Strikes . | . . . Average Backups 15 | 5 9 17 Power 4 | . 1 4 Propulsion . | 2 2 . Utility 5 | . 3 6 Weapon 5 | 1 2 5 Tool/Special . | . . . Unused Backups 14 | 2 . 12 Power 4 | . . 4 Propulsion 2 | 2 . . Utility 5 | . . 5 Weapon 3 | . . 3 Tool/Special . | . . . Average Slot Usage (%) 79 | . 100 77 Engine 11 | . 14 10 Treads 9 | . 28 7 Wheel 7 | . . 8 Device 11 | . 14 11 Storage 14 | . 14 14 Energy Cannon 3 | . . 4 Ballistic Gun 15 | . 28 14 Ballistic Cannon 1 | . . 1 Launcher 3 | . . 4 Peak Build Rating 15 | 6 8 15 Average Rating 10 | 4 7 10 On Entrance 4 | . 6 8 Naked Turns . | . . . Heaviest Build 99 | 11 27 99 Greatest Support 40 | 40 40 40 Greatest Overweight (x) 31 | . . 31 Average Overweight (x) 4 | . . 5 Largest Inventory Capacity 25 | 8 15 25 Average Capacity 20 | 7 14 22 Most Carried 21 | 8 10 21 Average Carried 15 | 5 9 17 Final Capacity 25 | 8 15 25 Final Carried 20 | 7 10 20 Class Distribution -------------------- 92% | Mutant 7% | Scavenger-Mutant Dominant Class ---------------- Mutant | -10/Materials Mutant | -10/Subcaves Resources | -11 -10 -10 ----------- Run | Yrd Mat Sub Matter Collected 628 | 264 . 364 Remotely . | . . . Salvage Created 440 | 44 . 396 Parts 33 | 8 . 25 Haulers Intercepted . | . . . Recyclers Shooed . | . . . Parts Field Recycled . | . . . Retrieved Matter . | . . . Parts Self-Destructed 9 | . . 9 Prevented . | . . . Kills | -11 -10 -10 ------- Run | Yrd Mat Sub Combat Hostiles Destroyed 10 | . . 10 Guns 6 | . . 6 Cannons 1 | . . 1 AOE 3 | . . 3 Classes Destroyed 4 | 1 . 3 Tunneler 2 | 2 . . Grunt 4 | . . 4 Subdweller 6 | . . 6 Scientist 1 | . . 1 Best Kill Streak 3 | 1 . 3 Combat Bots Only 3 | . . 3 Max Kills in Single Turn 1 | 1 . 1 Gunslinging . | . . . Exploded 1 | . . 1 Melee . | . . . Uniques/NPCs Destroyed . | . . . Combat | -11 -10 -10 -------- Run | Yrd Mat Sub Hostile Shots Fired 98 | . . 98 Missed 30 | . . 30 Hits 68 | . . 68 Projectile 68 | . . 68 AOE 4 | . . 4 Critical Strikes 1 | . . 1 Damage Taken 1164 | . . 1164 Core 255 | . . 255 Absorbed by Shields . | . . . Core Remaining (%) 100 | 100 . . Volleys Fired 87 | 8 . 79 Largest 2 | 2 . 2 Hottest 110 | 40 . 110 Shots Fired 134 | 16 . 118 Gun 94 | 16 . 78 Cannon 23 | . . 23 Launcher 17 | . . 17 Special . | . . . Kinetic 108 | 16 . 92 Thermal 9 | . . 9 Explosive 17 | . . 17 Electromagnetic . | . . . Robot Hit Streak 20 | 5 . 20 Robot Miss Streak 2 | 2 . 2 Penetration Max . | . . . Secondary Targets . | . . . Shots Hit Robots 93 | 9 . 84 Core Hits 33 | 3 . 30 Critical Kills . | . . . Critical Parts Destroyed . | . . . Critical Strikes . | . . . Melee Attacks . | . . . Impact . | . . . Slashing . | . . . Piercing . | . . . Sneak Attacks . | . . . Combat Hostiles . | . . . Follow-up Attacks . | . . . Damage Inflicted 1646 | 90 . 1556 Guns 632 | 90 . 542 Cannons 248 | . . 248 Explosions 766 | . . 766 Melee . | . . . Ramming . | . . . Kinetic 681 | 90 . 591 Thermal 199 | . . 199 Explosive 766 | . . 766 Electromagnetic . | . . . Impact . | . . . Slashing . | . . . Piercing . | . . . Highest Corruption . | . . . Average Corruption . | . . . Corruption Purged . | . . . Corruption Blocked . | . . . Overload Shots . | . . . Overflow Damage 3 | . . 3 Projectiles . | . . . Explosions 3 | . . 3 Melee . | . . . Knockbacks 1 | . . 1 Impact . | . . . Kinetic 1 | . . 1 Secondary . | . . . Self-Inflicted Damage 30 | . . 30 Shots 1 | . . 1 Rammed . | . . . Targets Rammed . | . . . Kicked . | . . . Crushed . | . . . Highest Temperature 99 | . . 99 Average Temperature 43 | . . 43 Received Heat Transfer 282 | . . 282 Siege Activations . | . . . Martial Activations . | . . . Shielding Activations . | . . . Robots Disrupted . | . . . Combat Hostiles . | . . . Robots Corrupted . | . . . Combat Hostiles . | . . . Parts Fried . | . . . Impact Corruptions . | . . . Robots Melted . | . . . Combat Hostiles . | . . . Parts Melted . | . . . Heat Transferred 259 | . . 259 Parts Sabotaged . | . . . Parts Stolen . | . . . Parts Stripped . | . . . Power Chain Reactions . | . . . Alert | -11 -10 -10 ------- Run | Yrd Mat Sub Maximum Alert Level . | . . . Low Security (%) 100 | 100 100 . Level 1 . | . . . Level 2 . | . . . Level 3 . | . . . Level 4 . | . . . Level 5 . | . . . High Security . | . . . Max Security . | . . . Peak Influence 5 | 5 . . Initial . | . . . Average . | 1 . . Influence Increases 110 | 10 . 100 Destroy 0b10 Robot/C 80 | . . 80 Destroy 0b10 Robot/NC 10 | 10 . . Destroy Leader 20 | . . 20 Influence Decreases 110 | 10 . 100 Time Decay 100 | 10 . 90 Lost Part 10 | . . 10 Squads Dispatched . | . . . Investigation . | . . . Extermination . | . . . Reinforcement . | . . . Assault . | . . . Garrison . | . . . Intercept . | . . . Searches Triggered . | . . . Construction Impeded . | . . . Haulers Reinforced . | . . . Active Scanning Responses . | . . . Cargo Convoy Interrupts . | . . . Stealth | -11 -10 -10 --------- Run | Yrd Mat Sub Distress Signals . | . . . Communications Jammed . | . . . Distress Signals . | . . . Times Spotted 15 | . . 15 Peak Tracking Total 4 | . . 4 Tactical Retreats . | . . . Traps | -11 -10 -10 ------- Run | Yrd Mat Sub Traps Triggered . | . . . Indirectly . | . . . Trap Hack Attempts . | . . . Triggered . | . . . Disarmed . | . . . Reprogrammed . | . . . Reused . | . . . Traps Extracted . | . . . Installed . | . . . Triggered . | . . . Machines | -11 -10 -10 ---------- Run | Yrd Mat Sub Machines Disabled . | . . . Max in Single Turn . | . . . Machines Repaired . | . . . Machines Dismantled . | . . . Machines Sabotaged . | . . . Overloaded Fab Kills . | . . . Hacking | -11 -10 -10 --------- Run | Yrd Mat Sub Machines Accessed . | . . . Terminals . | . . . Fabricators . | . . . Repair Stations . | . . . Recycling Units . | . . . Scanalyzers . | . . . Garrison Access . | . . . Total Hacks . | . . . Successful . | . . . Failed . | . . . Catastrophic . | . . . Database Lockouts . | . . . Manual . | . . . Terminals . | . . . Fabricators . | . . . Repair Stations . | . . . Recycling Units . | . . . Scanalyzers . | . . . Garrison Access . | . . . Terminal Hacks . | . . . Fabricator Hacks . | . . . Repair Station Hacks . | . . . Recycling Unit Hacks . | . . . Scanalyzer . | . . . Garrison Access Hacks . | . . . Unauthorized Hacks . | . . . Terminals . | . . . Fabricators . | . . . Repair Stations . | . . . Recycling Units . | . . . Scanalyzers . | . . . Garrison Access . | . . . Data Cores Recovered . | . . . Used . | . . . Hacking Detections . | . . . Full Trace Events . | . . . Feedback Events . | . . . Feedback Blocked . | . . . Robot Schematics Acquired . | . . . Robots Built . | . . . Authchips . | . . . Time . | . . . Total Robot Build Rating . | . . . Part Schematics Acquired . | . . . Parts Built . | . . . Authchips . | . . . Time . | . . . Total Part Build Rating . | . . . Parts Repaired . | . . . Time . | . . . Parts Recycled . | . . . Recycled Matter . | . . . Retrieved Matter . | . . . Retrieved Components . | . . . Parts Scanalyzed . | . . . Part Schematics Acquired . | . . . Parts Damaged . | . . . Bothacking | -11 -10 -10 ------------ Run | Yrd Mat Sub Used RIF Installer . | . . . Robots Hacked . | . . . Non-combat . | . . . Combat . | . . . Robot Hacks Applied . | . . . Relay Couplers Released . | . . . Fabnet Peak Effective % . | . . . Robots Rewired . | . . . Allies Hacked . | . . . Hacks Repelled . | . . . Allies | -11 -10 -10 -------- Run | Yrd Mat Sub Total Allies . | . . . Largest Group . | . . . Highest-Rated Group . | . . . Highest-Rated Ally . | . . . Total Orders . | . . . Ally Attacks . | . . . Total Damage . | . . . Kills . | . . . Allies Corrupted . | . . . Allies Melted . | . . . Intel | -11 -10 -10 ------- Run | Yrd Mat Sub Active Infowar (turns) 1229 | . 210 1019 Optics 734 | . . 734 Seismic 495 | . 210 285 Robot Analysis Total . | . . . Derelict Logs Recovered 1 | . . 1 Drone Launches . | . . . Drone Recoveries . | . . . Exploration | -11 -10 -10 ------------- Run | Yrd Mat Sub Turns Passed 2047 | 148 210 1689 Spaces Moved 717 | 76 80 561 Core 54 | 15 . 39 Treads 334 | 61 80 193 Legs . | . . . Wheels 329 | . . 329 Hover . | . . . Flight . | . . . Fastest Speed 50 | 50 160 95 Average Speed 233 | 138 160 257 Slowest Speed 1600 | 160 160 1600 Overloaded Moves . | . . . Propulsion Burnouts . | . . . Robots Hopped . | . . . Potential Cave-ins . | . . . Cave-ins Triggered . | . . . Exploration Rate (%) 17 | 6 13 34 Regions Visited 2 Branch Regions 1 Pre-discovered Areas . | . . . Known Exits Taken . | . . . Unknown Exits Taken 2 | 1 1 . Scrap Searched . | . . . Spaces Dug . | . . . Terrain Destroyed 85 | . . 85 Melee . | . . . Projectile 1 | . . 1 AOE 84 | . . 84 Terrain Rammed . | . . . Walls Destroyed . | . . . Machines Disabled . | . . . Actions | -11 -10 -10 --------- Run | Yrd Mat Sub Total 960 | 105 162 693 Wait 94 | . 75 19 Move 715 | 75 79 561 Hop . | . . . Pick Up 33 | 14 5 14 Fast Attach 2 | 1 . 1 Attach 9 | 5 1 3 Detach 1 | . . 1 Swap 14 | . 1 13 Drop 5 | 2 1 2 Fire 87 | 8 . 79 Melee . | . . . Ram . | . . . Kick . | . . . Crush . | . . . Escape Stasis . | . . . Rewire . | . . . Trap . | . . . Miscellaneous . | . . . Route ------- -11/Scrapyard -10/Materials -10/Subcaves History --------- Turn | Location | Event 10 | -11/Scrapyard | Discovered new exit (range 14) 149 | -11/Scrapyard | Entered Materials 306 | -10/Materials | Build established: Mutant 340 | -10/Materials | Discovered new exit (range 8) 359 | -10/Materials | Entered Subcaves 360 | -10/Subcaves | Approached by a straggling Scientist 560 | -10/Subcaves | A swath of the cavern ceiling suddenly collapsed 1029 | -10/Subcaves | Learned Materials stockpile data 1133 | -10/Subcaves | Shifting Twisted Machinery released Battle Cannon 1176 | -10/Subcaves | Shifting Twisted Machinery released Sub. Power Source 1183 | -10/Subcaves | Shifting Twisted Machinery released Sub. Machine Gun 1199 | -10/Subcaves | Ambushed by Subdweller buried in earth 1211 | -10/Subcaves | Core integrity fell below 50% 1448 | -10/Subcaves | Core integrity fell below 20% 2048 | -10/Subcaves | Destroyed by S-10 Pest with Light Assault Rifle Last Messages --------------- 01428_ G-47 Trooper destroyed. 01436_ Subatomizers dissect the Aluminum Leg. 01438_ Aluminum Leg fries itself beyond repair. 01446_ Acquired 58 matter. 01463_ G-34 Mercenary destroyed. 01465_ Acquired 47 matter. 01467_ Sml. Laser fries itself beyond repair. 01467_ Subatomizers dissect the Aluminum Leg. 01473_ Ion Engine fries itself beyond repair. 01474_ Aluminum Leg fries itself beyond repair. 01476_ Heat Sink fries itself beyond repair. 01525_ Sub. Optics shoots sparks and powers down. 01826_ Sub. Power Source shoots sparks and powers down. 02014_ 0S-BX7(O) collects matter. 02022_ Subatomizers dissect the Ion Engine. 02028_ 0S-BX7(O) collects matter. 02043_ Grenade Launcher destroyed. 02047_ 0S-BX7(O) puts together Battle Rifle. Map ----- +----------------------------------------------------+ | ?????????????????????????????????????????????????? | | ?????????????????????????????????????????????????? | | ?????????????????????????????????????????????????? | | ?????????????????????????????????????????????????? | | ?????????????????????????????????????????????????? | | ?????????????????????????????????????????????????? | | ?????????????????????????????????????????????????? | | ?????????????????????????????????????????????????? | | ???????????????????????????????? ???????????????? | | ???????????????????????????????? ???????????????? | | ??????????????????????????????? ???????????????? | | ??????????????????????????????? ???????????????? | | ??????????????????????????????#s ????????????????? | | ?????????????????????????????#s ????????????????? | | ???????????????????????????? s *?????????????????? | | ???????????????????????????? ??????????????????? | | ????????????????????????????s ??????????????????? | | ???????????????????????????# ???????????????????? | | ??????????????????????????# ???????????????????? | | ?????????????????????????? ????????????????????? | | ???????????# O??????????## #????????????????????? | | ???????????# ] ######### #????????????????????? | | ????????????# [ # ##???????????????????? | | ???????????????# ##??????????????????? | | ??????????????????# ##?????????????????? | | ??????????????????????# @ #?????????????????? | | ?????????????????????## ######?????????????????? | | ????????????????????## #??????????????????????? | | ???????????????????## ###????????????????????? | | ???????????????????# ###??????????????????? | | ???????????????????# ##?????????????????? | | ???????????????????### #?????????????????? | | ????????????????###??# ### ####??????????????? | | ???????????###?## #### #?## ### ####???????????? | | ???????????# ## ##### ## #???????????? | | ????????????# [ # #????????????? | | ######?####### #????????????? | | # ### # # "##### ###### #????????????? | | # ### # ###### #????????????? | | ### #????????????? | | # # ### #????????????? | | # ####### #????????????? | | ##???# ### ########????????????? | | #??# ??## ##???????????????????? | | ####??#####????# #????????????????????? | | ##?????????????# #????????????????????? | | ##????????????## #????????????????????? | | ##### #?????????????## ##????????????????????? | | ###???####??????????????####?????????????????????? | | ?????????????????????????????????????????????????? | +----------------------------------------------------+ Best States ------------- Heat Dissipation 25 Energy Generation 15 Energy Capacity 200 Matter Stores 272 Matter Capacity 300 Sight Range 21 Terrain Scan Density 10 Evasion (%) 50 Recoil Reduction 2 Item Schematics ----------------- None Robot Schematics ------------------ None Fabricated ------------ Nothing Repaired ---------- Nothing Alien Tech Used ----------------- None Achievements -------------- None Challenges ------------ None Game ------ Seed UtilityZioniteCyclogen Manual? 0 Play Time 00:10:29 Cumulative 162.8 hours Start 2025.08.18 @ 20:00:07 End 2025.08.18 @ 20:07:38 Sessions 1 Manual Loads 0 Difficulty Rogue Special Mode None Game No. 267 Rogue 267 Adventurer 0 Explorer 0 Win Type - Total 3 Types 2/0/1/0/0/0/0/0/0/0 Lore% 77 Gallery% 72 Achievement% 53 Wizard Run 0 Options --------- Layout 1 ASCII 0 Keyboard 0 Movement Mouse Keybinds 0 Fullscreen 1 Font 24/Smallcaps Map View 50x35 Zoom Use 0% Tactical HUD 1 Map Filters NONE Filters NONE Steam 1 RUN: d11cf164-499d-4a66-8e4e-780f3790160b